bitfinex-derivatives/quotes_BTCF0:USTF0_20250108
["timestamp","ask_amount","ask_price","bid_price","bid_amount"]
[1736302953393,0.2978,97277.0,97276.0,0.054412]
[1736302954196,0.2886,97283.0,97276.0,0.054412]
[1736302956396,0.2886,97283.0,97276.0,0.052412]
[1736302956697,0.2886,97283.0,97276.0,0.054412]
[1736302957292,0.28705745,97283.0,97282.0,0.051409]
[1736302958099,0.3608,97293.0,97277.0,0.3608]
[1736302958303,0.3608,97293.0,97292.0,0.051404]
[1736302959000,0.2937,97299.0,97292.0,0.04626361]
[1736302959195,0.0037,97299.0,97298.0,0.051401]
[1736302959598,0.5796,97313.0,97312.0,0.051393]
[1736302959794,0.5796,97313.0,97300.0,0.05825801]
[1736302960197,0.5796,97313.0,97312.0,0.051393]
[1736302960398,0.29,97313.0,97312.0,0.051393]
[1736302960798,0.292,97313.0,97312.0,0.051393]
[1736302961603,0.293,97313.0,97312.0,0.051393]
[1736302962808,0.291,97313.0,97312.0,0.051393]
[1736302963008,0.293,97313.0,97312.0,0.051393]
[1736302963508,0.291,97313.0,97312.0,0.051393]
[1736302963696,0.293,97313.0,97312.0,0.051393]
[1736302964101,0.291,97313.0,97312.0,0.07788363]
[1736302964301,0.291,97313.0,97312.0,0.08088363]
[1736302964800,0.29,97313.0,97312.0,0.08188363]
[1736302966901,0.2878,97317.0,97316.0,0.051391]
[1736302967301,0.2878,97317.0,97312.0,0.03049063]
[1736302967503,0.2878,97317.0,97316.0,0.051391]
[1736302968003,0.2878,97317.0,97316.0,0.052391]
[1736302968211,0.3095,97322.0,97321.0,0.051389]
[1736302970608,0.3105,97322.0,97321.0,0.051389]
[1736302972505,0.001,97322.0,97321.0,0.051389]
[1736302977813,0.3618,97322.0,97321.0,0.051389]
[1736302979219,0.3608,97322.0,97321.0,0.051389]
[1736302979520,0.3618,97322.0,97321.0,0.051389]
[1736302979921,0.3628,97322.0,97321.0,0.051389]
[1736302981025,0.3618,97322.0,97321.0,0.051389]
[1736302981226,0.3638,97322.0,97321.0,0.051389]
[1736302981722,0.3628,97322.0,97321.0,0.051389]
[1736302982031,0.3638,97322.0,97321.0,0.051389]
[1736302982517,0.3618,97322.0,97321.0,0.051389]
[1736302982718,0.3638,97322.0,97321.0,0.051389]
[1736302983830,0.3618,97322.0,97321.0,0.051389]
[1736302984028,0.3638,97322.0,97321.0,0.051389]
[1736302984725,0.325688,97331.0,97319.0,0.3608]
[1736302984930,0.001,97322.0,97321.0,0.051389]
[1736302985834,0.051384,97330.0,97325.0,0.051386]
[1736302986831,0.051384,97330.0,97326.0,0.051386]
[1736302987225,0.051384,97330.0,97327.0,0.051385]
[1736302987428,0.053384,97330.0,97327.0,0.051385]
[1736302988634,0.054384,97330.0,97327.0,0.051385]
[1736302989029,0.053384,97330.0,97327.0,0.051385]
[1736302989225,0.001,97330.0,97319.0,0.3608]
[1736302989431,0.051387,97325.0,97320.0,0.10350708]
[1736302989634,0.051387,97325.0,97322.0,0.051388]
[1736302990837,0.052387,97325.0,97322.0,0.051388]
[1736302992044,0.053387,97325.0,97322.0,0.051388]
[1736302992244,0.052387,97325.0,97322.0,0.051388]
[1736302992543,0.053387,97325.0,97322.0,0.051388]
[1736302993145,0.053387,97325.0,97319.0,0.3608]
[1736302993345,0.053387,97325.0,97323.0,0.051387]
[1736302994048,0.12666787,97324.0,97323.0,0.051387]
[1736302995352,0.12766787,97324.0,97323.0,0.051387]
[1736302995753,0.12766787,97324.0,97316.0,0.051391]
[1736302995754,0.48846787,97324.0,97316.0,0.051391]
[1736302995951,0.051391,97318.0,97316.0,0.051391]
[1736302996253,0.6428,97317.0,97316.0,0.051391]
[1736302996646,0.76946787,97317.0,97316.0,0.051391]
[1736302997153,0.76946787,97317.0,97316.0,0.04214212]
[1736302998052,0.46456787,97317.0,97316.0,0.04214212]
[1736302998256,0.12666787,97317.0,97316.0,0.04214212]
[1736302999556,0.12766787,97317.0,97316.0,0.04214212]
[1736302999953,0.12866787,97317.0,97316.0,0.04214212]
[1736303001254,0.12866787,97317.0,97315.0,0.03223193]
[1736303001456,0.18005887,97317.0,97306.0,0.00154133]
[1736303001655,0.052391,97317.0,97306.0,0.00154133]
[1736303001857,0.053391,97317.0,97306.0,0.00154133]
[1736303002064,0.052391,97317.0,97306.0,0.00154133]
[1736303002443,0.052391,97317.0,97307.0,0.10348997]
[1736303002859,0.051391,97317.0,97307.0,0.10348997]
[1736303003055,0.051392,97316.0,97313.0,0.051393]
[1736303003257,0.051393,97313.0,97306.0,0.08558121]
[1736303003455,0.6821,97312.0,97306.0,0.05293733]
[1736303004050,0.3471,97312.0,97306.0,0.00154133]
[1736303004258,0.3471,97312.0,97308.0,0.051395]
[1736303005661,0.051396,97307.0,97306.0,0.00154133]
[1736303005863,0.3608,97309.0,97280.0,0.10348997]
[1736303006061,0.3608,97301.0,97286.0,0.051407]
[1736303006452,0.3608,97301.0,97280.0,0.10348997]
[1736303006861,0.3608,97301.0,97291.0,0.3608]
[1736303007168,0.051404,97292.0,97291.0,0.3608]
[1736303008164,0.16214388,97292.0,97291.0,0.3628]
[1736303008367,0.051405,97291.0,97288.0,0.001]
[1736303008659,0.3227,97291.0,97288.0,0.001]
[1736303008868,0.3227,97291.0,97281.0,0.44472069]
[1736303010370,0.3237,97291.0,97281.0,0.44472069]
[1736303010568,0.3247,97291.0,97281.0,0.44472069]
[1736303011562,0.3247,97291.0,97281.0,0.39331069]
[1736303011760,0.3237,97291.0,97282.0,0.051409]
[1736303011968,0.3247,97291.0,97282.0,0.051409]
[1736303012466,0.3247,97291.0,97281.0,0.39331069]
[1736303012667,0.3247,97291.0,97288.0,0.051406]
[1736303012861,0.3247,97291.0,97281.0,0.39331069]
[1736303012862,0.3247,97291.0,97289.0,0.051405]
[1736303013171,0.002,97291.0,97289.0,0.051405]
[1736303013357,0.002,97291.0,97290.0,0.3241]
[1736303014061,0.002,97291.0,97290.0,0.6849]
[1736303015169,0.001,97291.0,97290.0,0.6849]
[1736303015366,0.002,97291.0,97290.0,0.6849]
[1736303019373,0.001,97291.0,97290.0,0.6849]
[1736303019576,0.002,97291.0,97290.0,0.6849]
[1736303020173,0.001,97291.0,97290.0,0.3608]
[1736303020376,0.002,97291.0,97290.0,0.3608]
[1736303021062,0.001,97291.0,97290.0,0.3608]
[1736303021276,0.002,97291.0,97290.0,0.3608]
[1736303022970,0.7027,97291.0,97290.0,0.3608]
[1736303035983,0.002,97291.0,97290.0,0.412205]
[1736303046588,0.12866787,97291.0,97290.0,0.412205]
[1736303046791,0.12666787,97291.0,97290.0,0.412205]
[1736303047580,0.23738756,97291.0,97290.0,0.412205]
[1736303047794,0.23838756,97291.0,97290.0,0.33656758]
[1736303048295,0.23738756,97291.0,97290.0,0.33856758]
[1736303048486,0.23838756,97291.0,97290.0,0.33856758]
[1736303049188,0.23738756,97291.0,97290.0,0.33956758]
[1736303049389,0.12666787,97291.0,97290.0,0.33956758]
[1736303049891,0.12666787,97291.0,97290.0,0.33656758]
[1736303050091,0.12666787,97291.0,97290.0,0.34056758]
[1736303050483,0.12666787,97291.0,97290.0,0.34156758]
[1736303050885,0.54298157,97300.0,97299.0,0.0514]
[1736303051093,0.54298157,97300.0,97299.0,0.40706001]
[1736303052597,0.54398157,97300.0,97291.0,0.57484375]
[1736303052799,0.54398157,97300.0,97291.0,0.57344375]
[1736303053101,0.54398157,97300.0,97299.0,0.0514]
[1736303053798,0.54298157,97300.0,97299.0,0.0514]
[1736303054497,0.54298157,97300.0,97299.0,0.0524]
[1736303055590,0.54298157,97300.0,97299.0,0.0534]
[1736303055989,0.54298157,97300.0,97299.0,0.10438814]
[1736303056195,0.54298157,97300.0,97299.0,0.10638814]
[1736303057894,0.54298157,97300.0,97299.0,0.10538814]
[1736303058298,0.54298157,97300.0,97299.0,0.10438814]
[1736303058499,0.54298157,97300.0,97299.0,0.10538814]
[1736303059300,0.90378157,97300.0,97299.0,0.10538814]
[1736303062598,0.90378157,97300.0,97299.0,0.05398814]
[1736303062793,0.90378157,97300.0,97286.0,0.051407]
[1736303062991,0.3608,97287.0,97286.0,0.051407]
[1736303063798,0.412207,97287.0,97279.0,0.051411]
[1736303064002,0.6662,97286.0,97279.0,0.051411]
[1736303065694,0.6662,97286.0,97279.0,0.052411]
[1736303066204,0.411607,97287.0,97279.0,0.055411]
[1736303066705,0.001,97286.0,97281.0,0.05141]
[1736303067796,0.002,97286.0,97281.0,0.05141]
[1736303068392,0.001,97286.0,97281.0,0.05141]
[1736303068998,0.003,97286.0,97281.0,0.05141]
[1736303069606,0.002,97286.0,97281.0,0.05141]
[1736303070309,0.003,97286.0,97281.0,0.05141]
[1736303071708,0.001,97286.0,97281.0,0.05141]
[1736303072005,0.002,97286.0,97282.0,0.051409]
[1736303072201,0.002,97286.0,97283.0,0.051409]
[1736303072405,0.003,97286.0,97283.0,0.051409]
[1736303073000,0.002,97286.0,97283.0,0.051409]
[1736303074705,0.003,97286.0,97283.0,0.051409]
[1736303075502,0.002,97286.0,97283.0,0.051409]
[1736303076710,0.002,97286.0,97284.0,0.051408]
[1736303086312,0.002,97286.0,97277.0,0.05092349]
[1736303086504,0.002,97286.0,97269.0,0.00154188]
[1736303086905,0.002,97286.0,97270.0,0.11938063]
[1736303087406,0.002,97286.0,97269.0,0.00154188]
[1736303087407,0.001,97286.0,97269.0,0.00154188]
[1736303087601,0.08936346,97279.0,97269.0,0.00154188]
[1736303087801,0.9743,97278.0,97269.0,0.00154188]
[1736303089012,0.9743,97278.0,97269.0,0.00254188]
[1736303089609,1.025711,97278.0,97277.0,0.3608]
[1736303091021,1.025711,97278.0,97277.0,0.3618]
[1736303092317,0.653,97278.0,97277.0,0.3618]
[1736303092514,0.3312,97278.0,97277.0,0.3618]
[1736303092709,0.051405,97291.0,97289.0,0.051405]
[1736303092914,0.051405,97291.0,97290.0,0.3608]
[1736303093921,0.052405,97291.0,97290.0,0.3608]
[1736303094522,0.054405,97291.0,97290.0,0.3608]
[1736303095222,0.054405,97291.0,97290.0,0.31957951]
[1736303100725,0.003,97291.0,97290.0,0.31957951]
[1736303102522,0.003,97291.0,97290.0,0.28762156]
[1736303105132,0.002,97291.0,97290.0,0.28762156]
[1736303105432,0.003,97291.0,97290.0,0.28762156]
[1736303105633,0.001,97291.0,97290.0,0.28762156]
[1736303105833,0.002,97291.0,97290.0,0.28762156]
[1736303106228,0.051399,97301.0,97290.0,0.28762156]
[1736303106431,0.001,97291.0,97290.0,0.33902656]
[1736303106633,0.001,97291.0,97290.0,0.69982656]
[1736303107331,0.001,97291.0,97290.0,0.46426038]
[1736303107831,0.12669439,97300.0,97292.0,0.051404]
[1736303108038,0.051399,97301.0,97292.0,0.051404]
[1736303108930,0.051399,97301.0,97294.0,0.051403]
[1736303109133,0.002,97300.0,97294.0,0.051403]
[1736303111032,0.054399,97301.0,97294.0,0.051403]
[1736303111635,0.002,97300.0,97294.0,0.051403]
[1736303112040,0.003,97300.0,97294.0,0.051403]
[1736303112242,0.001,97300.0,97294.0,0.051403]
[1736303112644,0.001,97300.0,97294.0,0.10240712]
[1736303112834,0.003,97300.0,97294.0,0.10240712]
[1736303114042,0.003,97300.0,97295.0,0.3608]
[1736303114736,0.003,97300.0,97295.0,0.412202]
[1736303115044,0.002,97300.0,97295.0,0.412202]
[1736303115251,0.003,97300.0,97296.0,0.051402]
[1736303116240,0.003,97300.0,97295.0,0.3608]
[1736303116544,0.003,97300.0,97299.0,0.0514]
[1736303118234,0.003,97300.0,97296.0,0.051402]
[1736303118440,0.003,97300.0,97299.0,0.0514]
[1736303119350,0.001,97300.0,97299.0,0.0514]
[1736303119549,0.003,97300.0,97299.0,0.0514]
[1736303120046,0.05293088,97320.0,97299.0,0.4122]
[1736303120347,0.05293088,97320.0,97318.0,0.3608]
[1736303121548,0.05393088,97320.0,97318.0,0.3608]
[1736303121746,0.00454188,97320.0,97319.0,0.05139]
[1736303122248,0.00354188,97320.0,97319.0,0.05139]
[1736303122440,0.00454188,97320.0,97318.0,0.35546848]
[1736303122949,0.13120004,97320.0,97319.0,0.05139]
[1736303123840,0.12920004,97320.0,97319.0,0.05139]
[1736303124047,0.00354188,97320.0,97319.0,0.05139]
[1736303124348,0.00254188,97320.0,97319.0,0.05139]
[1736303124655,0.001,97320.0,97319.0,0.05139]
[1736303127649,0.3067,97329.0,97319.0,0.05139]
[1736303127650,0.3067,97329.0,97328.0,0.051385]
[1736303127849,0.3067,97329.0,97328.0,0.412185]
[1736303128348,0.3067,97329.0,97328.0,0.3670567]
[1736303128940,0.3236,97337.0,97328.0,0.3156717]
[1736303129151,0.3236,97337.0,97336.0,0.051381]
[1736303130846,0.3246,97337.0,97336.0,0.051381]
[1736303131351,0.3256,97337.0,97336.0,0.051381]
[1736303131851,0.3256,97337.0,97336.0,0.04624291]
[1736303133441,0.3256,97337.0,97336.0,0.09782117]
[1736303133642,0.3256,97337.0,97336.0,0.04624291]
[1736303138255,0.3256,97337.0,97328.0,0.36785736]
[1736303138256,0.3256,97337.0,97328.0,0.36323307]
[1736303138438,0.051381,97336.0,97328.0,0.36323307]
[1736303138642,0.051382,97335.0,97328.0,0.36323307]
[1736303139357,0.051382,97335.0,97328.0,0.23484441]
[1736303140455,0.052382,97335.0,97329.0,0.051384]
[1736303141448,0.052382,97335.0,97333.0,0.051382]
[1736303141449,0.002,97335.0,97333.0,0.051382]
[1736303142750,0.001,97335.0,97333.0,0.051382]
[1736303142955,0.002,97335.0,97333.0,0.051382]
[1736303145546,0.001,97335.0,97333.0,0.051382]
[1736303145746,0.002,97335.0,97333.0,0.051382]
[1736303145962,0.002,97335.0,97329.0,0.52334183]
[1736303146248,0.002,97335.0,97329.0,0.52202183]
[1736303146649,0.001,97335.0,97329.0,0.52202183]
[1736303146850,0.002,97335.0,97329.0,0.52202183]
[1736303147051,0.002,97335.0,97333.0,0.051382]
[1736303147447,0.001,97335.0,97333.0,0.051382]
[1736303147955,0.002,97335.0,97333.0,0.051382]
[1736303149253,0.001,97335.0,97333.0,0.051382]
[1736303149550,0.002,97335.0,97333.0,0.051382]
[1736303149758,0.001,97335.0,97333.0,0.051382]
[1736303150054,0.3155,97342.0,97341.0,0.051378]
[1736303152159,0.3175,97342.0,97341.0,0.051378]
[1736303152852,0.3175,97342.0,97337.0,0.3608]
[1736303153153,0.3175,97342.0,97341.0,0.051378]
[1736303155545,0.3165,97342.0,97341.0,0.051378]
[1736303155745,0.3175,97342.0,97341.0,0.051378]
[1736303157855,0.002,97342.0,97341.0,0.051378]
[1736303159156,0.002,97342.0,97337.0,0.2510703]
[1736303160062,0.002,97342.0,97341.0,0.051378]
[1736303161663,0.001,97342.0,97341.0,0.051378]
[1736303161865,0.002,97342.0,97341.0,0.051378]
[1736303165965,0.002,97342.0,97341.0,0.08891587]
[1736303166171,0.002,97342.0,97341.0,0.08002429]
[1736303175565,0.051372,97353.0,97348.0,0.051374]
[1736303175762,0.051372,97353.0,97343.0,0.06660643]
[1736303175971,0.051372,97353.0,97350.0,0.051373]
[1736303177761,0.052372,97353.0,97350.0,0.051373]
[1736303177962,0.053372,97353.0,97350.0,0.051373]
[1736303178471,0.052372,97353.0,97350.0,0.051373]
[1736303178672,0.053372,97353.0,97351.0,0.051372]
[1736303183170,0.053372,97353.0,97351.0,0.08744267]
[1736303183876,0.3608,97368.0,97352.0,0.3608]
[1736303185178,0.3132,97361.0,97352.0,0.3608]
[1736303185379,0.3142,97361.0,97352.0,0.3608]
[1736303185768,0.051372,97353.0,97352.0,0.3608]
[1736303185973,0.3608,97359.0,97344.0,0.051376]
[1736303186177,0.051369,97358.0,97349.0,0.06660643]
[1736303186382,0.051373,97351.0,97350.0,0.3608]
[1736303188379,0.052373,97351.0,97350.0,0.3608]
[1736303192279,0.052373,97351.0,97347.0,0.051375]
[1736303192479,0.052373,97351.0,97348.0,0.3608]
[1736303193383,0.001,97351.0,97348.0,0.3608]
[1736303193787,0.3608,97349.0,97329.0,0.00132]
[1736303194090,0.051382,97334.0,97311.0,0.3608]
[1736303194286,0.051385,97329.0,97311.0,0.3608]
[1736303194589,0.06660643,97330.0,97311.0,0.3608]
[1736303194782,0.06660643,97321.0,97311.0,0.3608]
[1736303195487,0.10160987,97321.0,97311.0,0.3608]
[1736303195685,0.20321974,97321.0,97311.0,0.3608]
[1736303195883,0.13884856,97321.0,97311.0,0.3608]
[1736303196480,0.13884856,97321.0,97311.0,0.24973346]
[1736303196882,0.051393,97313.0,97311.0,0.25273346]
[1736303197191,0.051393,97313.0,97311.0,0.25173346]
[1736303197388,0.051393,97313.0,97311.0,0.24869346]
[1736303197779,0.9071,97320.0,97298.0,0.44819376]
[1736303197987,0.001,97313.0,97298.0,0.44819376]
[1736303198495,0.9071,97320.0,97298.0,0.44819376]
[1736303198691,0.001,97313.0,97298.0,0.3608]
[1736303199085,0.051394,97311.0,97298.0,0.3608]
[1736303199580,0.351394,97311.0,97298.0,0.3608]
[1736303199784,0.051394,97311.0,97298.0,0.3608]
[1736303200184,0.351394,97311.0,97298.0,0.3608]
[1736303200388,0.06987396,97308.0,97298.0,0.3608]
[1736303201894,0.12669586,97307.0,97298.0,0.3608]
[1736303202779,0.12669586,97306.0,97298.0,0.3608]
[1736303203585,0.10683212,97308.0,97298.0,0.3608]
[1736303203786,0.10583212,97308.0,97298.0,0.3608]
[1736303203988,0.001,97307.0,97298.0,0.3608]
[1736303204591,0.001,97306.0,97298.0,0.3608]
[1736303204982,0.10683212,97308.0,97298.0,0.3608]
[1736303205687,0.001,97307.0,97298.0,0.3608]
[1736303207191,0.10583212,97308.0,97298.0,0.3608]
[1736303207397,0.10683212,97308.0,97298.0,0.3608]
[1736303207898,0.10583212,97308.0,97298.0,0.3608]
[1736303208097,0.001,97307.0,97298.0,0.3608]
[1736303208596,0.10683212,97308.0,97298.0,0.3608]
[1736303209187,0.10683212,97308.0,97297.0,0.3608]
[1736303209393,0.10160987,97307.0,97297.0,0.3608]
[1736303210300,0.10260987,97307.0,97297.0,0.3608]
[1736303210693,0.10260987,97307.0,97298.0,0.3155]
[1736303210896,0.051384,97331.0,97306.0,0.3608]
[1736303211098,0.051391,97317.0,97316.0,0.3608]
[1736303211397,0.051391,97317.0,97316.0,0.32472001]
[1736303211588,0.051391,97317.0,97316.0,0.20055941]
[1736303212099,0.17808686,97317.0,97316.0,0.20055941]
[1736303212596,0.17808686,97317.0,97316.0,0.20051941]
[1736303212994,0.051391,97317.0,97316.0,0.20051941]
[1736303213400,0.052391,97317.0,97316.0,0.20051941]
[1736303218896,0.052391,97317.0,97307.0,0.61172]
[1736303218897,0.001,97317.0,97307.0,0.61172]
[1736303219094,0.051396,97308.0,97307.0,0.6104]
[1736303219508,0.051396,97308.0,97307.0,0.54936001]
[1736303219803,0.0514,97299.0,97295.0,0.3608]
[1736303221204,0.0524,97299.0,97296.0,0.3292]
[1736303223001,0.4132,97299.0,97296.0,0.3292]
[1736303224004,0.051401,97297.0,97296.0,0.3292]
[1736303224593,0.051401,97297.0,97296.0,0.23263131]
[1736303225906,0.052401,97297.0,97290.0,0.3088]
[1736303226209,0.051405,97291.0,97290.0,0.3088]
[1736303227903,0.051401,97297.0,97284.0,0.3094]
[1736303227904,0.051402,97296.0,97284.0,0.3094]
[1736303228092,0.10160987,97294.0,97284.0,0.3094]
[1736303229099,0.052402,97296.0,97284.0,0.3094]
[1736303229300,0.001,97296.0,97284.0,0.3094]
[1736303229499,0.051401,97297.0,97284.0,0.3094]
[1736303229800,0.001,97294.0,97284.0,0.3094]
[1736303230198,0.051401,97297.0,97284.0,0.3094]
[1736303230199,0.001,97296.0,97284.0,0.3094]
[1736303232602,0.052401,97297.0,97284.0,0.3094]
[1736303233098,0.051401,97297.0,97284.0,0.3094]
[1736303233301,0.001,97296.0,97284.0,0.3094]
[1736303233700,0.052401,97297.0,97284.0,0.3094]
[1736303234318,0.001,97297.0,97287.0,0.10160987]
[1736303234504,0.001,97297.0,97296.0,0.3608]
[1736303235512,0.001,97297.0,97296.0,0.32472001]
[1736303235708,0.12769586,97297.0,97296.0,0.32472001]
[1736303236107,0.12769586,97297.0,97295.0,0.051402]
[1736303236300,0.12769586,97297.0,97288.0,0.051406]
[1736303237004,0.12769586,97297.0,97288.0,0.07793337]
[1736303237514,0.001,97297.0,97288.0,0.07793337]
[1736303242014,0.001,97297.0,97288.0,0.02652737]
[1736303242315,0.001,97297.0,97287.0,0.10160987]
[1736303243420,0.10160987,97310.0,97287.0,0.10160987]
[1736303243715,0.001,97297.0,97286.0,0.3608]
[1736303244319,0.3608,97293.0,97286.0,0.3608]
[1736303245112,0.3608,97293.0,97270.0,0.10160987]
[1736303245313,0.3608,97293.0,97271.0,0.3278]
[1736303245714,0.3618,97293.0,97278.0,0.6803]
[1736303245923,0.3618,97293.0,97278.0,0.68166]
[1736303247017,0.38961972,97293.0,97278.0,0.68166]
[1736303249918,0.1426692,97292.0,97278.0,0.68166]
[1736303250222,0.1426692,97292.0,97286.0,0.22938039]
[1736303250412,0.1426692,97292.0,97280.0,0.10160987]
[1736303252414,0.02742567,97297.0,97280.0,0.10160987]
[1736303252415,0.1426692,97291.0,97280.0,0.10160987]
[1736303252821,0.1426692,97291.0,97278.0,0.3195]
[1736303253021,0.1426692,97291.0,97285.0,0.3608]
[1736303254914,0.38758161,97300.0,97285.0,0.3608]
[1736303256419,0.38858161,97300.0,97285.0,0.3608]
[1736303258223,0.38858161,97300.0,97285.0,0.38839378]
[1736303258722,0.001,97300.0,97296.0,0.3608]
[1736303258926,0.001,97300.0,97297.0,0.92805864]
[1736303263730,0.001,97300.0,97297.0,0.83150392]
[1736303264830,0.001,97300.0,97297.0,0.85821161]
[1736303265529,0.3608,97322.0,97297.0,0.85821161]
[1736303265530,0.3608,97322.0,97305.0,0.051397]
[1736303265733,0.3608,97322.0,97309.0,0.3608]
[1736303265931,0.10160987,97320.0,97309.0,0.3608]
[1736303266133,0.3608,97312.0,97297.0,0.83286392]
[1736303266335,0.3608,97312.0,97300.0,0.10160987]
[1736303267726,0.3618,97312.0,97300.0,0.10160987]
[1736303268827,0.3618,97312.0,97300.0,0.00505495]
[1736303272338,0.3618,97312.0,97297.0,0.71562557]
[1736303272542,0.3618,97312.0,97297.0,0.71430557]
[1736303272728,0.3608,97303.0,97294.0,0.3608]
[1736303272931,0.3608,97295.0,97280.0,0.3608]
[1736303273826,0.10160987,97290.0,97278.0,0.65622]
[1736303274031,0.3608,97285.0,97278.0,0.6549]
[1736303274937,0.3608,97285.0,97278.0,0.6559]
[1736303275434,0.3608,97285.0,97270.0,0.3608]
[1736303275641,0.3608,97285.0,97278.0,0.001]
[1736303277034,0.3106,97284.0,97278.0,0.001]
[1736303277647,0.3608,97281.0,97278.0,0.001]
[1736303278037,0.3608,97281.0,97260.0,0.00154215]
[1736303278441,0.10160987,97270.0,97260.0,0.00154215]
[1736303278643,0.10160987,97270.0,97259.0,0.3608]
[1736303281145,0.10160987,97270.0,97259.0,0.3628]
[1736303281945,0.10160987,97270.0,97259.0,0.3638]
[1736303282840,0.12535836,97270.0,97259.0,0.3638]
[1736303291550,0.12535836,97270.0,97260.0,0.327]
[1736303291953,0.12535836,97270.0,97261.0,0.10816223]
[1736303292255,0.12535836,97270.0,97261.0,0.42026223]
[1736303294256,0.12535836,97270.0,97261.0,0.42226223]
[1736303294555,0.12535836,97270.0,97261.0,0.42326223]
[1736303295457,0.12535836,97270.0,97261.0,0.32666426]
[1736303297151,0.12535836,97270.0,97260.0,0.32836]
[1736303297448,0.12535836,97270.0,97260.0,0.00136]
[1736303297449,0.3608,97261.0,97260.0,0.00136]
[1736303297857,0.10160987,97258.0,97248.0,0.3608]
[1736303298052,0.10160987,97258.0,97242.0,0.2978]
[1736303298357,0.10160987,97252.0,97242.0,0.2978]
[1736303298656,0.10160987,97252.0,97243.0,0.3161]
[1736303299152,0.10160987,97252.0,97248.0,0.001]
[1736303299554,0.10160987,97258.0,97248.0,0.001]
[1736303300351,0.10160987,97258.0,97248.0,0.004]
[1736303301048,0.10160987,97258.0,97248.0,0.001]
[1736303304763,0.12248545,97258.0,97248.0,0.001]
[1736303306862,0.12248545,97258.0,97243.0,0.12486909]
[1736303308254,0.12248545,97258.0,97243.0,0.12686909]
[1736303311861,0.12248545,97258.0,97243.0,0.03025205]
[1736303319067,0.12248545,97258.0,97243.0,0.002]
[1736303319367,0.3608,97252.0,97234.0,0.3608]
[1736303319555,0.10160987,97244.0,97234.0,0.3608]
[1736303319761,0.3093,97243.0,97234.0,0.3608]
[1736303320453,0.3608,97242.0,97224.0,0.3608]
[1736303320859,0.3608,97242.0,97221.0,0.2975]
[1736303321865,0.04701252,97231.0,97221.0,0.2975]
[1736303323067,0.04701252,97231.0,97205.0,0.0206898]
[1736303323068,0.3608,97222.0,97187.0,0.3608]
[1736303323361,0.10160987,97231.0,97144.0,0.3608]
[1736303323362,0.3608,97188.0,97144.0,0.3608]
[1736303323572,0.3608,97173.0,97155.0,0.3608]
[1736303323873,0.3608,97177.0,97155.0,0.3608]
[1736303324071,0.3608,97177.0,97150.0,0.10160987]
[1736303324072,0.3608,97177.0,97165.0,0.3608]
[1736303324377,0.3608,97177.0,97150.0,0.10160987]
[1736303324378,0.10160987,97180.0,97162.0,0.3608]
[1736303324563,0.3608,97178.0,97162.0,0.3608]
[1736303324964,0.001,97177.0,97172.0,0.3608]
[1736303325160,0.001,97177.0,97162.0,0.3608]
[1736303325466,0.001,97177.0,97172.0,0.3608]
[1736303325664,0.2068035,97177.0,97172.0,0.15829263]
[1736303325869,0.2068035,97177.0,97173.0,0.3288]
[1736303326371,0.2058035,97176.0,97173.0,0.3288]
[1736303326668,0.2058035,97176.0,97174.0,0.31046]
[1736303326876,0.11089723,97175.0,97174.0,0.31046]
[1736303328161,0.11289723,97175.0,97174.0,0.31046]
[1736303329472,0.11289723,97175.0,97173.0,0.3288]
[1736303329672,0.3608,97174.0,97173.0,0.3288]
[1736303329876,0.3608,97174.0,97167.0,0.3411]
[1736303330078,0.3608,97174.0,97150.0,0.10160987]
[1736303330079,0.3608,97170.0,97150.0,0.78600987]
[1736303330283,0.3608,97162.0,97150.0,0.78600987]
[1736303331375,0.11089723,97161.0,97150.0,0.78600987]
[1736303331581,0.11089723,97161.0,97150.0,0.52933699]
[1736303331782,0.11089723,97161.0,97150.0,0.53133699]
[1736303331979,0.3608,97162.0,97150.0,0.53133699]
[1736303332483,0.37990385,97162.0,97150.0,0.53233699]
[1736303332886,0.37990385,97162.0,97150.0,0.53333699]
[1736303334282,0.37990385,97162.0,97150.0,0.53033699]
[1736303334586,0.37990385,97162.0,97150.0,0.53233699]
[1736303338785,0.01910385,97162.0,97156.0,0.3608]
[1736303338988,0.3608,97170.0,97156.0,0.3608]
[1736303339394,0.3608,97170.0,97160.0,0.10160987]
[1736303339997,0.37984264,97170.0,97160.0,0.10160987]
[1736303341287,0.38084264,97170.0,97160.0,0.10160987]
[1736303341894,0.38184264,97170.0,97160.0,0.10160987]
[1736303343494,0.02104264,97170.0,97160.0,0.10160987]
[1736303343997,0.02104264,97170.0,97150.0,0.52933699]
[1736303344689,0.3608,97157.0,97150.0,0.3433]
[1736303344894,0.3608,97157.0,97150.0,0.24659374]
[1736303345988,0.3618,97157.0,97150.0,0.24659374]
[1736303346192,0.3618,97157.0,97149.0,0.10027565]
[1736303347404,0.001,97157.0,97150.0,0.005]
[1736303347593,0.001,97157.0,97155.0,0.3608]
[1736303347793,0.002,97157.0,97155.0,0.3608]
[1736303348393,0.001,97157.0,97155.0,0.3608]
[1736303348802,0.01531583,97157.0,97155.0,0.3608]
[1736303349005,0.001,97157.0,97155.0,0.3608]
[1736303351195,0.3608,97172.0,97155.0,0.3608]
[1736303351404,0.001,97157.0,97155.0,0.3608]
[1736303351805,0.37623866,97172.0,97156.0,0.3363]
[1736303352105,0.001,97157.0,97156.0,0.3363]
[1736303354504,0.37723866,97172.0,97156.0,0.3363]
[1736303354703,0.37823866,97172.0,97156.0,0.3363]
[1736303355108,0.37723866,97172.0,97156.0,0.3363]
[1736303355308,0.002,97157.0,97156.0,0.3363]
[1736303355704,0.001,97157.0,97156.0,0.04251101]
[1736303356104,0.11090157,97171.0,97156.0,0.04251101]